Cogmind - Beta 13 *** ADVENTURER MODE // 2024.06.22 @ 07:36:30 Player: FEX Result: Destroyed by G-47 Trooper with Particle Gun Performance ------------- Evolutions (2) 1000 Regions Visited (3) 600 Robots Destroyed (36) 180 Value Destroyed (972) 972 Prototype IDs (9) 180 Alien Tech Used (0) 0 Bonus (-14) -14 TOTAL SCORE: 2918 Bonus ------- Friendly Fire -14 Cogmind --------- Core Integrity 0/550 Matter 300/300 Energy 100/100 System Corruption 0% Temperature Cool (9) Movement Core (350) Ox6 Location -8/Materials Parts ------- > --- POWER (1) -------- (None) > --- PROPULSION (2) --- (None) > --- UTILITY (6) ------ Large Storage Unit Machine Analyzer > --- WEAPON (2) ------- (None) > --- INVENTORY (15) --- Improved Treads Improved Treads Armored Treads Cargo Storage Unit Target Analyzer Makeshift Hacking Suite System Shield Light Cannon Light Cannon Grenade Launcher Grenade Launcher Peak State ------------ > --- POWER ------------ Light Ion Engine > --- PROPULSION ------- Improved Treads Improved Treads > --- UTILITY ---------- Improved Heat Sink Large Storage Unit Machine Analyzer Scrap Shield Shield Generator > --- WEAPON ----------- Beamcaster Beamcaster > --- INVENTORY -------- Improved Treads Improved Treads Armored Treads Cargo Storage Unit Target Analyzer Makeshift Hacking Suite Light Cannon Light Cannon Grenade Launcher Grenade Launcher [Rating: 30] Favorites ----------- Power Light Ion Engine Engine Light Ion Engine Propulsion Aluminum Leg Treads Improved Treads Leg Aluminum Leg Utility Improved Heat Sink Device Improved Heat Sink Storage Large Storage Unit Processor Machine Analyzer Protection Scrap Shield Weapon Light Cannon Energy Gun Beamcaster Energy Cannon Beam Cannon Ballistic Gun Assault Rifle Ballistic Cannon Light Cannon Launcher Subdweller Shrapnel Launcher Build | -11 -10 -10 -8 ------- Run | Yrd Mat Sub Mat Slots Evolved 4 | . . . 4 Power . | . . . . Propulsion . | . . . . Utility 4 | . . . 4 Weapon . | . . . . Parts Attached 39 | 6 18 7 8 Power 5 | 1 2 1 1 Engine 5 | 1 2 1 1 Core . | . . . . Reactor . | . . . . Propulsion 9 | 2 3 2 2 Treads 2 | . . . 2 Leg 7 | 2 3 2 . Wheel . | . . . . Hover . | . . . . Flight . | . . . . Utility 14 | 1 8 . 5 Device 7 | 1 5 . 1 Storage 4 | . 2 . 2 Processor 2 | . 1 . 1 Hackware . | . . . . Protection 1 | . . . 1 Artifact . | . . . . Weapon 11 | 2 5 4 . Energy Gun 4 | 1 1 2 . Energy Cannon 1 | . 1 . . Ballistic Gun 1 | 1 . . . Ballistic Cannon 4 | . 3 1 . Launcher 1 | . . 1 . Special Weapon . | . . . . Impact Weapon . | . . . . Slashing Weapon . | . . . . Piercing Weapon . | . . . . Special Melee Weapon . | . . . . Unidentified Prototypes . | . . . . Parts Lost 8 | . . . 8 Power 1 | . . . 1 Propulsion 2 | . . . 2 Utility 3 | . . . 3 Weapon 2 | . . . 2 Highest Loss Streak 7 | . . . 7 To Critical Strikes . | . . . . Average Slot Usage (%) 96 | . 99 100 81 Engine 12 | . 14 14 8 Treads 3 | . . . 16 Leg 22 | . 28 28 . Device 14 | . 14 14 15 Storage 11 | . 12 14 9 Processor 1 | . . . 6 Protection 1 | . . . 7 Energy Gun 5 | . 2 6 17 Ballistic Gun 1 | . 1 . . Ballistic Cannon 18 | . 23 21 . Naked Turns . | . . . . Heaviest Build 172 | 8 30 35 172 Greatest Support 46 | 20 20 30 46 Greatest Overweight (x) 5 | . 1 1 5 Average Overweight (x) . | . . . 1 Largest Inventory Capacity 30 | 5 15 15 30 Average Capacity 14 | 5 13 15 16 Most Carried 15 | 2 12 15 12 Average Carried 9 | . 8 12 10 Final Capacity 15 | 5 15 15 15 Final Carried 12 | . 10 11 12 Class Distribution -------------------- 81% | Mutant 16% | Scavenger-Mutant Dominant Class ---------------- Mutant | -10/Materials Mutant | -10/Subcaves Scavenger-Mutant | -8/Materials Resources | -11 -10 -10 -8 ----------- Run | Yrd Mat Sub Mat Matter Collected 1048 | 265 425 268 90 Remotely . | . . . . Salvage Created 1108 | 45 630 170 263 Parts 67 | 1 36 16 14 Haulers Intercepted . | . . . . Recyclers Shooed 1 | . 1 . . Parts Field Recycled . | . . . . Retrieved Matter . | . . . . Parts Self-Destructed 3 | . . 3 . Prevented . | . . . . Kills | -11 -10 -10 -8 ------- Run | Yrd Mat Sub Mat Combat Hostiles Destroyed 29 | 1 13 6 9 Melee 2 | . . . 2 Guns 11 | 1 3 . 7 Cannons 14 | . 10 4 . AOE 2 | . . 2 . Classes Destroyed 7 | 1 4 1 1 Worker 1 | . 1 . . Recycler 3 | . 3 . . Watcher 3 | . 3 . . Swarmer 9 | . 6 . 3 Grunt 13 | 1 7 . 5 Sentry 1 | . . . 1 Subdweller 6 | . . 6 . Best Kill Streak 7 | 1 7 2 3 Combat Bots Only 5 | 1 5 2 3 Max Kills in Single Turn 2 | 1 2 2 2 Gunslinging 1 | . . . 1 Exploded 2 | . . 2 . Melee 1 | . . . 1 Uniques/NPCs Destroyed . | . . . . Combat | -11 -10 -10 -8 -------- Run | Yrd Mat Sub Mat Hostile Shots Fired 265 | 6 59 20 180 Missed 68 | 1 17 5 45 Damage Taken 2097 | 40 312 245 1500 Core 581 | . 26 . 555 Absorbed by Shields 180 | . . . 180 Ignored by Resistances 659 | 14 96 71 478 Regen/Repaired (Parts) 69 | . 69 . . Core Remaining (%) 94 | 100 . 89 . Volleys Fired 90 | 5 40 16 29 Largest 2 | 2 2 2 2 Hottest 150 | 70 70 75 150 Shots Fired 170 | 10 80 33 47 Gun 93 | 10 36 . 47 Cannon 74 | . 44 30 . Launcher 3 | . . 3 . Special . | . . . . Kinetic 100 | 5 62 33 . Thermal 70 | 5 18 . 47 Explosive . | . . . . Electromagnetic . | . . . . Robot Hit Streak 24 | 10 20 24 11 Robot Miss Streak 4 | . 3 1 4 Penetration Max . | . . . . Secondary Targets 2 | . 1 . 1 Max Gunslinging Chain 1 | . 1 . 1 Shots Hit Robots 123 | 10 52 28 33 Core Hits 55 | 2 25 13 15 Critical Kills . | . . . . Critical Parts Destroyed . | . . . . Critical Strikes 5 | . 1 . 4 Burn 5 | . 1 . 4 Melee Attacks . | . . . . Impact . | . . . . Slashing . | . . . . Piercing . | . . . . Sneak Attacks . | . . . . Combat Hostiles . | . . . . Follow-up Attacks . | . . . . Damage Inflicted 2709 | 121 828 986 774 Guns 1204 | 121 365 . 718 Cannons 750 | . 463 287 . Explosions 699 | . . 699 . Melee . | . . . . Ramming 56 | . . . 56 Kinetic 1687 | 58 643 986 . Thermal 966 | 63 185 . 718 Explosive . | . . . . Electromagnetic . | . . . . Impact . | . . . . Slashing . | . . . . Piercing . | . . . . Highest Corruption 1 | . 1 1 . Average Corruption 1 | . 1 1 . Corruption Purged . | . . . . Corruption Blocked . | . . . . Effects 8 | . 2 6 . Message Errors 1 | . . 1 . Matter Fused 5 | . 1 4 . Data Loss (minor) 1 | . 1 . . Misfires 1 | . . 1 . Overload Shots . | . . . . Overflow Damage 7 | . . 7 . Projectiles . | . . . . Explosions 7 | . . 7 . Melee . | . . . . Knockbacks 3 | . . 3 . Impact . | . . . . Kinetic 3 | . . 3 . Secondary . | . . . . Self-Inflicted Damage . | . . . . Shots . | . . . . Rammed 15 | . . . 15 Targets Rammed 17 | . . . 17 Kicked . | . . . . Crushed 2 | . . . 2 Highest Temperature 150 | 69 150 . 120 Average Temperature 43 | 37 46 . 41 Received Heat Transfer 1296 | 30 105 12 1149 Siege Activations . | . . . . Robots Corrupted . | . . . . Combat Hostiles . | . . . . Parts Fried . | . . . . Impact Corruptions . | . . . . Robots Melted . | . . . . Combat Hostiles . | . . . . Parts Melted 5 | . 1 1 3 Heat Transferred 2368 | 185 629 . 1554 Parts Sabotaged . | . . . . Parts Stolen . | . . . . Parts Stripped . | . . . . Power Chain Reactions . | . . . . Alert | -11 -10 -10 -8 ------- Run | Yrd Mat Sub Mat Peak Influence 224 | 20 224 . 207 Initial 11 | . 11 . . Average 43 | 2 42 . 52 Maximum Alert Level 1 | . 1 . 1 Low Security (%) 94 | 100 93 . 99 Level 1 5 | . 6 . . Level 2 . | . . . . Level 3 . | . . . . Level 4 . | . . . . Level 5 . | . . . . High Security . | . . . . Max Security . | . . . . Squads Dispatched 3 | . 2 . 1 Investigation 3 | . 2 . 1 Extermination . | . . . . Reinforcement . | . . . . Assault . | . . . . Garrison . | . . . . Intercept . | . . . . Searches Triggered . | . . . . Construction Impeded . | . . . . Haulers Reinforced . | . . . . Active Scanning Responses . | . . . . Cargo Convoy Interrupts . | . . . . Stealth | -11 -10 -10 -8 --------- Run | Yrd Mat Sub Mat Distress Signals 2 | . 1 . 1 Communications Jammed . | . . . . Distress Signals . | . . . . Times Spotted 48 | 1 19 12 16 Peak Tracking Total 6 | 1 6 6 6 Tactical Retreats 5 | . 1 . 4 Traps | -11 -10 -10 -8 ------- Run | Yrd Mat Sub Mat Traps Triggered 2 | . 2 . . Indirectly . | . . . . Trap Hack Attempts . | . . . . Triggered . | . . . . Disarmed 1 | . 1 . . Reprogrammed . | . . . . Reused . | . . . . Traps Extracted . | . . . . Installed . | . . . . Triggered . | . . . . Machines | -11 -10 -10 -8 ---------- Run | Yrd Mat Sub Mat Machines Disabled 1 | . . . 1 Max in Single Turn 1 | . . . 1 Machines Repaired . | . . . . Machines Dismantled . | . . . . Machines Sabotaged . | . . . . Overloaded Fab Kills . | . . . . Hacking | -11 -10 -10 -8 --------- Run | Yrd Mat Sub Mat Machines Accessed 12 | . 10 . 2 Terminals 9 | . 7 . 2 Fabricators . | . . . . Repair Stations 1 | . 1 . . Recycling Units 2 | . 2 . . Scanalyzers . | . . . . Garrison Access . | . . . . Total Hacks 43 | . 37 . 6 Successful 24 | . 20 . 4 Failed 19 | . 17 . 2 Catastrophic 3 | . 3 . . Database Lockouts . | . . . . Manual 14 | . 12 . 2 Terminals 35 | . 29 . 6 Fabricators . | . . . . Repair Stations 5 | . 5 . . Recycling Units 3 | . 3 . . Scanalyzers . | . . . . Garrison Access . | . . . . Terminal Hacks 17 | . 13 . 4 Record 1 | . 1 . . Robot Analysis 1 | . 1 . . Prototype ID Bank 6 | . 5 . 1 Recycling Unit Index 1 | . 1 . . Unreport Threat 4 | . 2 . 2 Disarm Traps 1 | . 1 . . Registered Prototypes 2 | . 1 . 1 Zone Layout 1 | . 1 . . Fabricator Hacks . | . . . . Repair Station Hacks 5 | . 5 . . Scan Component 3 | . 3 . . Repair 2 | . 2 . . Recycling Unit Hacks 2 | . 2 . . Retrieve Components 2 | . 2 . . Scanalyzer . | . . . . Garrison Access Hacks . | . . . . Unauthorized Hacks . | . . . . Terminals . | . . . . Fabricators . | . . . . Repair Stations . | . . . . Recycling Units . | . . . . Scanalyzers . | . . . . Garrison Access . | . . . . Data Cores Recovered . | . . . . Used . | . . . . Hacking Detections 9 | . 8 . 1 Full Trace Events 8 | . 7 . 1 Feedback Events 1 | . 1 . . Corruption 1 | . 1 . . Feedback Blocked . | . . . . Robot Schematics Acquired . | . . . . Robots Built . | . . . . Authchips . | . . . . Time . | . . . . Total Robot Build Rating . | . . . . Part Schematics Acquired . | . . . . Parts Built . | . . . . Authchips . | . . . . Time . | . . . . Total Part Build Rating . | . . . . Parts Repaired 2 | . 2 . . Time 64 | . 64 . . Parts Recycled . | . . . . Recycled Matter . | . . . . Retrieved Matter . | . . . . Retrieved Components 9 | . 9 . . Parts Scanalyzed . | . . . . Part Schematics Acquired . | . . . . Parts Damaged . | . . . . Bothacking | -11 -10 -10 -8 ------------ Run | Yrd Mat Sub Mat Used RIF Installer . | . . . . Robots Hacked . | . . . . Non-combat . | . . . . Combat . | . . . . Robot Hacks Applied . | . . . . Relay Couplers Released . | . . . . Fabnet Peak Effective % . | . . . . Robots Rewired . | . . . . Allies Hacked . | . . . . Hacks Repelled . | . . . . Allies | -11 -10 -10 -8 -------- Run | Yrd Mat Sub Mat Total Allies . | . . . . Largest Group . | . . . . Highest-Rated Group . | . . . . Highest-Rated Ally . | . . . . Total Orders . | . . . . Ally Attacks . | . . . . Total Damage . | . . . . Kills . | . . . . Allies Corrupted . | . . . . Allies Melted . | . . . . Intel | -11 -10 -10 -8 ------- Run | Yrd Mat Sub Mat Robot Analysis Total 1 | . 1 . . Derelict Logs Recovered 2 | . . 2 . Drone Launches . | . . . . Drone Recoveries . | . . . . Exploration | -11 -10 -10 -8 ------------- Run | Yrd Mat Sub Mat Turns Passed 4121 | 90 2363 909 759 Spaces Moved 1920 | 66 1188 435 231 Core 22 | 22 . . . Treads 226 | . . . 226 Legs 1672 | 44 1188 435 5 Wheels . | . . . . Hover . | . . . . Flight . | . . . . Fastest Speed 50 | 50 120 120 160 Average Speed 185 | 96 177 187 249 Slowest Speed 470 | 120 190 190 470 Overloaded Moves . | . . . . Propulsion Burnouts . | . . . . Robots Hopped . | . . . . Cave-ins Triggered . | . . . . Exploration Rate (%) 36 | 7 100 22 16 Regions Visited 3 Branch Regions 1 Pre-discovered Areas 1 | . . 1 . Known Exits Taken . | . . . . Unknown Exits Taken 3 | 1 1 1 . Scrap Searched . | . . . . Spaces Dug . | . . . . Terrain Destroyed 54 | . . 54 . Melee . | . . . . Projectile . | . . . . AOE 54 | . . 54 . Terrain Rammed . | . . . . Walls Destroyed . | . . . . Machines Disabled . | . . . . Actions | -11 -10 -10 -8 --------- Run | Yrd Mat Sub Mat Total 2304 | 82 1368 499 355 Wait 158 | . 85 22 51 Move 1917 | 65 1187 434 231 Hop . | . . . . Pick Up 53 | 6 26 10 11 Fast Attach . | . . . . Attach 17 | 6 6 . 5 Detach 3 | . 1 . 2 Swap 22 | . 12 7 3 Drop 27 | . 11 10 6 Fire 90 | 5 40 16 29 Melee . | . . . . Ram . | . . . . Kick . | . . . . Crush 17 | . . . 17 Escape Stasis . | . . . . Rewire . | . . . . Trap . | . . . . Miscellaneous . | . . . . Route ------- -11/Scrapyard -10/Materials (discovered 5 exits: [*Mat x3] / [*Min] / [*Sub]) -10/Subcaves -8/Materials (discovered 1 exit: Fac) History --------- Turn | Location | Event 2 | -11/Scrapyard | Met Revision 17 60 | -11/Scrapyard | Discovered new exit (range 8) 91 | -11/Scrapyard | Entered Materials 299 | -10/Materials | Discovered new exit (range 13) 307 | -10/Materials | Build established: Mutant 586 | -10/Materials | Discovered new exit (range 4) 797 | -10/Materials | Discovered new exit (range 13) 933 | -10/Materials | Discovered new exit (range 12) 1395 | -10/Materials | Repaired Lgt. Cannon 1438 | -10/Materials | Repaired Imp. Heat Sink 1668 | -10/Materials | Discovered new exit (range 11) 2454 | -10/Materials | Entered Subcaves 2467 | -10/Subcaves | Learned location of 1 exit from Materials 2468 | -10/Subcaves | A swath of the cavern ceiling suddenly collapsed 2611 | -10/Subcaves | A swath of the cavern ceiling suddenly collapsed 2673 | -10/Subcaves | Shifting Twisted Machinery released Multitool 2727 | -10/Subcaves | Shifting Twisted Machinery released Sub. Shrapnel Launcher 2766 | -10/Subcaves | Ambushed by swarm of Subdwellers 2983 | -10/Subcaves | Shifting Twisted Machinery released Mak. Hacking Suite 3023 | -10/Subcaves | Shifting Twisted Machinery released Mak. Thermal Plating 3093 | -10/Subcaves | Lost 4 allies 3145 | -10/Subcaves | Learned location of Storage (-7) 3211 | -10/Subcaves | Discovered new exit (range 7) 3363 | -10/Subcaves | Entered Materials 3363 | -8/Materials | Evolved 4 slots: Utility x4 3364 | -8/Materials | Identified exit to Factory 3718 | -8/Materials | Build established: Scavenger-Mutant 4101 | -8/Materials | Core integrity fell below 50% 4110 | -8/Materials | Core integrity fell below 20% 4122 | -8/Materials | Destroyed by G-47 Trooper with Particle Gun Last Messages --------------- Slammed into G-47 Trooper. Crushed G-47 Trooper. G-47 Trooper destroyed. Imp. Treads destroyed. Slammed into G-47 Trooper. Ion Engine destroyed. Slammed into G-47 Trooper. Critical hit (Burn: +26). Shield Generator destroyed. Slammed into G-47 Trooper. Critical hit (Burn: +37). Slammed into G-47 Trooper. G-47 Trooper destroyed. Critical hit (Burn: +37). Imp. Treads destroyed. Imp. Heat Sink destroyed. Beamcaster destroyed. G-47 Trooper suffers critical hit (Burn). Beamcaster destroyed. K-01 Serf collects debris. Map ----- +----------------------------------------------------+ | ??????????????????????????????????? | | ??????????????????????????????????? | | ????????????T"????????????????????? | | ?????????????"????????????????????? | | ??????????????????????????????????? | | ??????????????????????????????????? | | ??????????????????????????????????? | | ??????????????????????????????????? | | ??????????????????????????????????? | | ????????????????????#####?????????? | | ???????????????????? #?????????? | | ???????????????????? #?????????? | | ???????????????????? #?????????? | | ????????????????????# #?"""?"""?? | | ????????????????????# #?"""?"""?? | | ????????????????????# #?"""?"""?? | | ???????????????????? # """?"""?? | | ????????????????????# + """?"""?? | | ?????????????######## #?????????? | | ?????????????# ## #?????????? | | ?????????????# % #?????????? | | ?????????????# % = ##########? | | ?????????????# # #? | | ?????????????# ## #! """ "#? | | ???????######## = ### # """ "#? | | ???????#%%@%%[#[%=#?# # """ "#? | | ???????#]g%%%%;*k #?# + T#? | | ???????#%g"""%#= #?# # """ "#? | | ???????#!g"""[# #####/#* """ "#? | | ???????#=="""%# # / # """ "#? | | ???????# =# # #= #? | | ???????######## + " ##########? | | ??????????????# # """ #?????????? | | ?????########## # "" #?????????? | | ?????# # # """ #?????????? | | ?????# # # "" #?????????? | | ?????# """ # # """ #?????????? | | ?????# """" # # """ #?????????? | | ?????# """" # # """ #?????????? | | ?????# """"" # # "? #?????????? | | ?????# """ # # ?? #?????????? | | ?????# + ###??##?????????? | | ?????# # #???????????????? | | ?????########## #???????????????? | | ???????# # #???????????????? | | ???????#""" # ##########??????? | | ???????#""" / + # T #??????? | | ???????#""" # # """ #??????? | | ???????#""" # # """ #??????? | | ???????# !# # """ #??????? | +----------------------------------------------------+ Best States ------------- Heat Dissipation 45 Energy Generation 10 Energy Capacity 250 Matter Stores 300 Matter Capacity 300 Sight Range 16 Robot Scan Range 14 Terrain Scan Density 10 Armor Coverage 800 Resistance: KI 20 Resistance: TH 20 Resistance: EX 20 Resistance: EM 20 Resistance: I 20 Resistance: S 20 Resistance: P 20 Evasion (%) 55 Recoil Reduction 2 Offensive Hacking 10 Item Schematics ----------------- None Robot Schematics ------------------ None Fabricated ------------ Nothing Alien Tech Used ----------------- None Achievements -------------- Tank Challenges ------------ None Game ------ Seed ActiveSmallThrower Manual? 0 Play Time 00:43:52 Cumulative 3.5 hours Start 2024.06.22 @ 06:54:50 End 2024.06.22 @ 07:36:30 Sessions 1 Manual Loads 0 Difficulty Adventurer Special Mode None Game No. 2 Rogue 0 Adventurer 2 Explorer 0 Win Type - Total 0 Types 0/0/0/0/0/0/0/0/0 Lore% 0 Gallery% 7 Achievement% 7 Wizard Run 0 Options --------- Layout 1 ASCII 0 Keyboard 0 Movement Mouse Keybinds 0 Fullscreen 1 Font 40/SmallcapsGlow Map View 50x40 Zoom Use 0% Tactical HUD 0 Map Filters NONE Filters NONE Steam 1 RUN: 5a31020e-35b0-47dd-bc74-a1f9bb34f01d